[Event "XIV American Continental-ch 2019"]
[Site "Sao Paulo"]
[Date "2019.07.06"]
[Round "2.7"]
[White "Supi, Luis Paulo"]
[Black "Pereira, Silvio Cunha"]
[Result "1-0"]
[ECO "C50"]
[WhiteElo "2562"]
[BlackElo "2220"]
[Annotator "RC"]
[PlyCount "144"]
[EventDate "2019.07.05"]
[EventType "swiss"]
[EventCountry "BRA"]
[SourceTitle "playchess.com"]
[Source "ChessBase"]
[SourceQuality "1"]
[TimeControl "40/5400+30:1800+30"]

1. e4 {[%emt 0:00:00]} e5 2. Nf3 {[%emt 0:00:00]} Nc6 {[%emt 0:01:14]} 3. Bc4 {[%emt 0:00:36]} Bc5 {[%emt 0:00:05]} 4. O-O {[%emt 0:00:39]} d6 {[%emt 0:00:33]} 5. c3 {[%emt 0:00:27]} Bb6 {[%emt 0:00:35]} 6. d3 {[%emt 0:02:56]} Nf6 {[%emt 0:00:17]} 7. Nbd2 {[%emt 0:04:43]} Nh5 {[%emt 0:05:44]} 8. d4 {[%emt 0:11:25]} Nf4 {[%emt 0:02:00]} 9. Bb5 {[%emt 0:03:32]} O-O {[%emt 0:09:51]} 10. Nc4 {[%emt 0:03:55]} Qf6 {[%emt 0:09:22]} 11. a4 {[%emt 0:03:57]} a6 {[%emt 0:19:35]} 12. Bxc6 {[%emt 0:00:30]} bxc6 {[%emt 0:00:12]} 13. Re1 {[%emt 0:14:17]} Bg4 {[%emt 0:02:39]} 14. dxe5 {[%emt 0:08:49]} dxe5 {[%emt 0:01:12]} 15. Ncxe5 {[%emt 0:00:16]} Bxf3 {[%emt 0:00:30]} 16. Qxf3 {[%emt 0:01:45]} Nh3+ {[%emt 0:00:10]} 17. gxh3 {[%emt 0:01:30]} Qxe5 {[%emt 0:00:07]} 18. Bf4 {[%emt 0:00:28]} Qf6 {[%emt 0:07:49]} 19. Qg3 {[%emt 0:01:42]} Rad8 {[%emt 0:03:11]} 20. Qg4 {[%emt 0:09:46]} Rfe8 {[%emt 0:13:19]} 21. a5 {[%emt 0:05:08]} Ba7 {[%emt 0:00:32]} 22. Rad1 {[%emt 0:02:12]} h6 {[%emt 0:03:15]} 23. Bg3 {[%emt 0:01:14]} Qe7 24. Qf5 {[%emt 0:02:01]} c5 {[%emt 0:13:42]} 25. Rd5 {[%emt 0:08:51]} g6 {[%emt 0:02:21]} 26. Qe5 {[%emt 0:00:02]} Qxe5 {[%emt 0:00:39]} 27. Rxe5 {[%emt 0:00:06]} Rxe5 {[%emt 0:00:35]} 28. Bxe5 {[%emt 0:00:01]} c4 {[%emt 0:01:49]} 29. Bxc7 {[%emt 0:00:55]} Rd2 {[%emt 0:00:32]} 30. Bg3 {[%emt 0:00:14]} Kf8 {[%emt 0:01:18]} 31. Rb1 {[%emt 0:02:01]} Re2 {[%emt 0:00:03]} 32. b4 {[%emt 0:04:40]} cxb3 {[%emt 0:01:47]} 33. Rxb3 {[%emt 0:00:02]} Rxe4 {[%emt 0:00:22]} 34. Bd6+ {[%emt 0:00:14]} Ke8 {[%emt 0:01:03]} 35. Rb7 {[%emt 0:00:05]} Re1+ {[%emt 0:00:19]} 36. Kg2 {[%emt 0:00:03]} Rd1 {[%emt 0:00:02]} 37. Re7+ {[%emt 0:04:53]} Kd8 {[%emt 0:00:01]} 38. Rxa7 {[%emt 0:00:22]} Rxd6 {[%emt 0:00:01]} 39. c4 {[%emt 0:01:03]} Rf6 {[%emt 0:00:56]} 40. Kg3 {[%emt 0:01:19]} Ke8 {[%emt 0:00:21]} 41. Rc7 {[%emt 0:31:01]} Rf5 {[%emt 0:31:14]} 42. c5 {[%emt 0:00:19]} Kd8 {[%emt 0:00:00]} 43. Rc6 {[%emt 0:00:00]} Kd7 {[%emt 0:00:00]} 44. Rd6+ {[%emt 0:00:00]} Ke7 {[%emt 0:00:00]} 45. Rxa6 {[%emt 0:00:00]} Rxc5 {[%emt 0:00:00]} 46. Ra7+ {[%emt 0:00:00]} Kf6 {[%emt 0:00:00]} 47. a6 {[%emt 0:00:00]} Rg5+ {[%emt 0:00:00]} 48. Kf4 {[%emt 0:00:00]} Rf5+ {[%emt 0:00:00]} 49. Ke3 {[%emt 0:00:00]} Re5+ {[%emt 0:00:00]} 50. Kd3 {[%emt 0:00:00]} Rf5 {[%emt 0:00:00]} 51. Ke3 {[%emt 0:00:00]} Re5+ {[%emt 0:00:00]} 52. Kd4 {[%emt 0:00:00]} Re6 {[%emt 0:00:00]} 53. h4 {[%emt 0:00:00]} g5 {[%emt 0:00:00]} 54. hxg5+ {[%emt 0:00:00]} hxg5 {[%emt 0:00:00]} 55. f3 {[%emt 0:00:00]} Rb6 {[%emt 0:00:00]} 56. Kc5 {[%emt 0:00:00]} Re6 {[%emt 0:00:00]} 57. Kd4 {[%emt 0:02:47]} Rd6+ {[%emt 0:00:00]} 58. Ke3 {[%emt 0:02:23]} Re6+ {[%emt 0:00:00]} 59. Kf2 {[%emt 0:00:50]} Kg6 {[%emt 0:00:00]} 60. Kg3 {[%emt 0:00:18]} Rf6 {[%emt 0:00:00]} 61. Ra8 {[%emt 0:01:59]} Kg7 {[%emt 0:00:00]} 62. h3 {[%emt 0:00:39]} Kh7 {[%emt 0:00:00]} 63. Kg4 {[%emt 0:00:41]} Rf4+ {[%emt 0:00:55]} 64. Kxg5 {[%emt 0:00:24]} Rxf3 {[%emt 0:00:06]} 65. Rf8 {[%emt 0:01:22]} Ra3 {[%emt 0:03:19]} 66. Rxf7+ {[%emt 0:00:06]} Kg8 {[%emt 0:00:09]} 67. Ra7 {[%emt 0:01:14]} Rxh3 {[%emt 0:00:09]} 68. Rb7 {[%emt 0:00:07]} Ra3 69. Ra7 Rd3 70. Rf7 Rf3 71. Ra7 Rg3+ 72. Kf5 Ra3 1-0

[Event "XIV American Continental-ch 2019"]
[Site "Sao Paulo"]
[Date "2019.07.06"]
[Round "2.8"]
[White "Gasic Merino, Franco"]
[Black "Perez Ponsa, Federico"]
[Result "0-1"]
[ECO "A45"]
[WhiteElo "2226"]
[BlackElo "2560"]
[Annotator "RC"]
[PlyCount "56"]
[EventDate "2019.07.05"]
[EventType "swiss"]
[EventCountry "BRA"]
[SourceTitle "playchess.com"]
[Source "ChessBase"]
[SourceQuality "1"]
[TimeControl "40/5400+30:1800+30"]

1. d4 {[%emt 0:00:07]} Nf6 {[%emt 0:00:00]} 2. g3 {[%emt 0:00:05]} c5 {[%emt 0:00:13]} 3. d5 {[%emt 0:00:10]} b5 {[%emt 0:00:07]} 4. f3 {[%emt 0:00:17]} e6 {[%emt 0:00:30]} 5. e4 {[%emt 0:00:11]} c4 {[%emt 0:00:08]} 6. a4 {[%emt 0:00:19]} Qa5+ {[%emt 0:00:17]} 7. Bd2 {[%emt 0:27:41]} b4 {[%emt 0:00:31]} 8. dxe6 fxe6 {[%emt 0:02:10]} 9. c3 {[%emt 0:14:24]} Nc6 {[%emt 0:11:36]} 10. Bxc4 {[%emt 0:02:11]} Bc5 {[%emt 0:05:54]} 11. Be2 {[%emt 0:08:09]} O-O {[%emt 0:06:00]} 12. Nh3 {[%emt 0:01:03]} d5 {[%emt 0:07:34]} 13. cxb4 {[%emt 0:05:57]} Nxb4 {[%emt 0:06:26]} 14. e5 {[%emt 0:10:13]} Nd7 {[%emt 0:00:47]} 15. f4 {[%emt 0:00:28]} Bb7 {[%emt 0:08:17]} 16. Ra3 {[%emt 0:09:51]} Rab8 {[%emt 0:12:48]} 17. Bg4 {[%emt 0:02:41]} Rbe8 {[%emt 0:08:46]} 18. Rf1 {[%emt 0:08:03]} d4 {[%emt 0:04:33]} 19. Nf2 {[%emt 0:01:50]} Qb6 {[%emt 0:04:18]} 20. a5 {[%emt 0:04:10]} Qc7 {[%emt 0:00:59]} 21. Rb3 {[%emt 0:02:02]} Qxa5 {[%emt 0:00:57]} 22. Na3 {[%emt 0:00:29]} Bd5 {[%emt 0:00:31]} 23. Nd3 {[%emt 0:00:36]} Bxb3 {[%emt 0:01:54]} 24. Qxb3 {[%emt 0:00:06]} Nxd3+ {[%emt 0:00:09]} 25. Qxd3 {[%emt 0:00:01]} Bb4 {[%emt 0:00:44]} 26. Nc4 {[%emt 0:01:24]} Bxd2+ {[%emt 0:03:33]} 27. Qxd2 {[%emt 0:00:26]} Qd5 {[%emt 0:00:51]} 28. Bf3 {[%emt 0:00:33]} Qxc4 {[%emt 0:00:06]} 0-1

[Event "XIV American Continental-ch 2019"]
[Site "Sao Paulo"]
[Date "2019.07.06"]
[Round "2.9"]
[White "Fier, Alexandr"]
[Black "Fernandez, Maria Florencia"]
[Result "1-0"]
[ECO "A16"]
[WhiteElo "2547"]
[BlackElo "2220"]
[Annotator "RC"]
[PlyCount "71"]
[EventDate "2019.07.05"]
[EventType "swiss"]
[EventCountry "BRA"]
[SourceTitle "playchess.com"]
[Source "ChessBase"]
[SourceQuality "1"]
[TimeControl "40/5400+30:1800+30"]

1. c4 {[%emt 0:00:57]} Nf6 {[%emt 0:00:00]} 2. Nc3 {[%emt 0:00:04]} g6 {[%emt 0:00:18]} 3. g3 {[%emt 0:00:06]} Bg7 {[%emt 0:00:14]} 4. Bg2 {[%emt 0:00:05]} O-O {[%emt 0:00:17]} 5. e4 {[%emt 0:00:04]} d6 {[%emt 0:00:17]} 6. Nge2 {[%emt 0:00:05]} e5 {[%emt 0:01:13]} 7. d3 {[%emt 0:00:10]} Be6 {[%emt 0:02:03]} 8. O-O {[%emt 0:01:14]} Qd7 {[%emt 0:02:17]} 9. f4 {[%emt 0:01:06]} Bh3 {[%emt 0:02:00]} 10. f5 {[%emt 0:00:07]} Bxg2 {[%emt 0:00:22]} 11. Kxg2 {[%emt 0:00:05]} c6 {[%emt 0:02:12]} 12. h3 {[%emt 0:00:57]} d5 {[%emt 0:04:13]} 13. cxd5 {[%emt 0:00:06]} cxd5 {[%emt 0:00:09]} 14. Bg5 {[%emt 0:00:03]} dxe4 15. dxe4 {[%emt 0:01:07]} Qxd1 {[%emt 0:19:04]} 16. Raxd1 {[%emt 0:00:06]} Nbd7 {[%emt 0:00:32]} 17. Rd6 {[%emt 0:06:38]} h6 {[%emt 0:06:50]} 18. Be3 {[%emt 0:00:32]} Rfc8 {[%emt 0:05:05]} 19. Rfd1 {[%emt 0:05:54]} Rc7 {[%emt 0:09:15]} 20. g4 {[%emt 0:06:12]} Bf8 {[%emt 0:05:56]} 21. R6d2 {[%emt 0:01:05]} a6 {[%emt 0:00:30]} 22. Kf3 {[%emt 0:00:33]} g5 {[%emt 0:13:45]} 23. h4 {[%emt 0:01:06]} Bc5 {[%emt 0:04:30]} 24. Bxc5 {[%emt 0:02:18]} Nxc5 {[%emt 0:00:12]} 25. Rd6 {[%emt 0:00:03]} Rc6 {[%emt 0:05:47]} 26. Rxf6 {[%emt 0:02:19]} Rxf6 {[%emt 0:00:08]} 27. b4 {[%emt 0:00:12]} Nxe4 {[%emt 0:05:05]} 28. Nxe4 {[%emt 0:00:51]} Rb6 {[%emt 0:00:10]} 29. hxg5 {[%emt 0:00:30]} hxg5 {[%emt 0:00:13]} 30. Nxg5 {[%emt 0:00:16]} Rxb4 {[%emt 0:00:53]} 31. Rd7 {[%emt 0:00:05]} Rc8 {[%emt 0:02:02]} 32. Nxf7 {[%emt 0:01:24]} Rc2 {[%emt 0:01:08]} 33. Nxe5 {[%emt 0:00:56]} Rxa2 {[%emt 0:00:43]} 34. f6 {[%emt 0:00:50]} Rb3+ {[%emt 0:01:30]} 35. Kf2 {[%emt 0:00:21]} Rbb2 {[%emt 0:00:15]} 36. Rg7+ {[%emt 0:00:05]} 1-0

[Event "XIV American Continental-ch 2019"]
[Site "Sao Paulo"]
[Date "2019.07.06"]
[Round "2.10"]
[White "Sega, Carlos Alberto"]
[Black "Gonzalez Vidal, Yuri"]
[Result "0-1"]
[ECO "A14"]
[WhiteElo "2220"]
[BlackElo "2547"]
[Annotator "RC"]
[PlyCount "58"]
[EventDate "2019.07.05"]
[EventType "swiss"]
[EventCountry "BRA"]
[SourceTitle "playchess.com"]
[Source "ChessBase"]
[SourceQuality "1"]
[TimeControl "40/5400+30:1800+30"]

1. c4 e6 {[%emt 0:00:00]} 2. g3 {[%emt 0:02:02]} Nf6 {[%emt 0:00:14]} 3. Bg2 {[%emt 0:00:20]} d5 {[%emt 0:00:15]} 4. Nf3 {[%emt 0:00:18]} Be7 {[%emt 0:00:17]} 5. O-O {[%emt 0:00:16]} O-O {[%emt 0:00:08]} 6. b3 {[%emt 0:00:46]} b6 {[%emt 0:00:45]} 7. Bb2 {[%emt 0:00:44]} Bb7 {[%emt 0:00:19]} 8. e3 {[%emt 0:01:41]} c5 {[%emt 0:00:48]} 9. Nc3 {[%emt 0:01:42]} Qc8 {[%emt 0:00:16]} 10. cxd5 {[%emt 0:02:30]} Nxd5 {[%emt 0:02:28]} 11. Nxd5 {[%emt 0:02:27]} Bxd5 {[%emt 0:00:34]} 12. d3 {[%emt 0:01:29]} Rd8 {[%emt 0:03:18]} 13. Qe2 {[%emt 0:01:25]} Qa6 {[%emt 0:05:01]} 14. Rfd1 {[%emt 0:07:10]} Nd7 {[%emt 0:02:47]} 15. e4 {[%emt 0:02:35]} Bc6 {[%emt 0:04:12]} 16. Qe3 {[%emt 0:01:00]} Qb7 {[%emt 0:01:43]} 17. Rac1 {[%emt 0:10:59]} Rac8 {[%emt 0:00:35]} 18. h4 {[%emt 0:01:48]} h6 {[%emt 0:09:56]} 19. g4 {[%emt 0:13:04]} Qb8 {[%emt 0:16:14]} 20. g5 {[%emt 0:06:32]} Bd6 {[%emt 0:03:55]} 21. Rb1 {[%emt 0:14:36]} Bf4 {[%emt 0:01:36]} 22. Qe1 {[%emt 0:00:11]} hxg5 {[%emt 0:08:18]} 23. hxg5 {[%emt 0:02:27]} Ne5 {[%emt 0:03:04]} 24. Nxe5 {[%emt 0:04:36]} Bxe5 {[%emt 0:00:07]} 25. Bxe5 {[%emt 0:06:36]} Qxe5 {[%emt 0:00:01]} 26. Qe3 {[%emt 0:00:11]} Rd4 {[%emt 0:03:38]} 27. b4 {[%emt 0:06:57]} Rcd8 {[%emt 0:09:42]} 28. bxc5 {[%emt 0:02:10]} bxc5 {[%emt 0:00:25]} 29. Bf3 {[%emt 0:04:20]} Ba4 {[%emt 0:01:07]} 0-1

[Event "XIV American Continental-ch 2019"]
[Site "Sao Paulo"]
[Date "2019.07.06"]
[Round "2.11"]
[White "Mekhitarian, Krikor Sevag"]
[Black "Terao, Juliana Sayumi"]
[Result "1-0"]
[ECO "E06"]
[WhiteElo "2545"]
[BlackElo "2213"]
[Annotator "RC"]
[PlyCount "83"]
[EventDate "2019.07.05"]
[EventType "swiss"]
[EventCountry "BRA"]
[SourceTitle "playchess.com"]
[Source "ChessBase"]
[SourceQuality "1"]
[TimeControl "40/5400+30:1800+30"]

1. d4 {[%emt 0:00:00]} Nf6 {[%emt 0:09:38]} 2. c4 {[%emt 0:00:00]} e6 {[%emt 0:00:26]} 3. Nf3 {[%emt 0:00:34]} d5 {[%emt 0:01:10]} 4. g3 {[%emt 0:00:13]} Be7 {[%emt 0:00:14]} 5. Bg2 {[%emt 0:00:33]} O-O {[%emt 0:00:36]} 6. Nc3 {[%emt 0:00:13]} dxc4 {[%emt 0:00:36]} 7. Ne5 {[%emt 0:00:09]} Nc6 {[%emt 0:03:38]} 8. Bxc6 {[%emt 0:00:07]} bxc6 {[%emt 0:00:07]} 9. Nxc6 {[%emt 0:00:10]} Qe8 {[%emt 0:00:54]} 10. Nxe7+ {[%emt 0:00:09]} Qxe7 {[%emt 0:00:07]} 11. Qa4 {[%emt 0:00:04]} c5 {[%emt 0:28:09]} 12. dxc5 {[%emt 0:00:17]} Qxc5 {[%emt 0:00:47]} 13. Be3 {[%emt 0:00:05]} Qc7 {[%emt 0:01:19]} 14. f3 {[%emt 0:01:38]} e5 {[%emt 0:07:52]} 15. O-O-O {[%emt 0:19:02]} Be6 {[%emt 0:14:51]} 16. Qa6 {[%emt 0:18:28]} Rfb8 {[%emt 0:11:42]} 17. Rd2 {[%emt 0:01:17]} h6 {[%emt 0:02:47]} 18. Rhd1 {[%emt 0:12:22]} Kh7 {[%emt 0:05:53]} 19. h4 {[%emt 0:13:36]} h5 {[%emt 0:03:41]} 20. Qd6 {[%emt 0:00:30]} Rb7 {[%emt 0:00:42]} 21. Qxc7 {[%emt 0:00:45]} Rxc7 {[%emt 0:00:07]} 22. Rd8 {[%emt 0:00:52]} Rxd8 {[%emt 0:00:32]} 23. Rxd8 {[%emt 0:00:02]} a6 {[%emt 0:01:07]} 24. Rd6 {[%emt 0:02:49]} Bc8 {[%emt 0:00:18]} 25. Bg5 {[%emt 0:08:49]} Ne8 {[%emt 0:01:36]} 26. Rd8 {[%emt 0:00:07]} Bd7 {[%emt 0:00:09]} 27. Nd5 {[%emt 0:07:33]} Rb7 {[%emt 0:00:13]} 28. Nb6 {[%emt 0:07:02]} Bc6 {[%emt 0:00:45]} 29. Nxc4 {[%emt 0:00:43]} f6 {[%emt 0:00:22]} 30. Be3 {[%emt 0:02:23]} Bb5 {[%emt 0:03:20]} 31. b3 {[%emt 0:00:23]} Re7 {[%emt 0:00:22]} 32. a4 {[%emt 0:01:28]} Bxc4 {[%emt 0:00:38]} 33. bxc4 {[%emt 0:00:02]} Nc7 {[%emt 0:00:14]} 34. Rd6 {[%emt 0:02:28]} e4 {[%emt 0:00:21]} 35. Kd2 {[%emt 0:00:31]} Kg6 {[%emt 0:00:25]} 36. a5 {[%emt 0:00:45]} exf3 {[%emt 0:01:30]} 37. exf3 {[%emt 0:00:02]} Kf5 {[%emt 0:00:25]} 38. Bb6 {[%emt 0:01:27]} Ke5 {[%emt 0:00:49]} 39. Rc6 {[%emt 0:00:54]} Ne6 {[%emt 0:00:12]} 40. Be3 {[%emt 0:00:27]} g5 {[%emt 0:00:40]} 41. Rxa6 {[%emt 0:30:55]} Rb7 {[%emt 0:30:43]} 42. Rb6 {[%emt 0:00:00] Kd5} 1-0

[Event "XIV American Continental-ch 2019"]
[Site "Sao Paulo"]
[Date "2019.07.06"]
[Round "2.12"]
[White "Guimaraes, Wagner Peixoto"]
[Black "Lima, Darcy"]
[Result "1/2-1/2"]
[ECO "E11"]
[WhiteElo "2206"]
[BlackElo "2543"]
[Annotator "RC"]
[PlyCount "97"]
[EventDate "2019.07.05"]
[EventType "swiss"]
[EventCountry "BRA"]
[SourceTitle "playchess.com"]
[Source "ChessBase"]
[SourceQuality "1"]
[TimeControl "40/5400+30:1800+30"]

1. d4 {[%emt 0:00:00]} Nf6 {[%emt 0:03:26]} 2. c4 {[%emt 0:00:08]} e6 {[%emt 0:00:15]} 3. Nf3 {[%emt 0:00:08]} Bb4+ {[%emt 0:03:43]} 4. Nbd2 {[%emt 0:02:10]} d5 {[%emt 0:00:29]} 5. e3 {[%emt 0:02:43]} O-O {[%emt 0:00:15]} 6. Bd3 {[%emt 0:02:27]} b6 {[%emt 0:02:31]} 7. O-O {[%emt 0:01:11]} Bb7 {[%emt 0:00:30]} 8. a3 {[%emt 0:05:49]} Be7 {[%emt 0:01:01]} 9. Qc2 {[%emt 0:02:17]} Nbd7 {[%emt 0:09:40]} 10. e4 {[%emt 0:25:39]} dxe4 {[%emt 0:00:07]} 11. Nxe4 {[%emt 0:00:03]} c5 {[%emt 0:00:47]} 12. dxc5 {[%emt 0:08:19]} Bxe4 {[%emt 0:02:12]} 13. Bxe4 {[%emt 0:00:08]} Nxe4 {[%emt 0:00:06]} 14. Qxe4 {[%emt 0:00:05]} Nxc5 {[%emt 0:00:06]} 15. Qe3 {[%emt 0:10:32]} Bf6 {[%emt 0:03:54]} 16. Rb1 {[%emt 0:02:08]} Qd3 {[%emt 0:19:54]} 17. Qxd3 {[%emt 0:00:09]} Nxd3 {[%emt 0:00:02]} 18. b3 {[%emt 0:00:22]} Be7 {[%emt 0:01:27]} 19. a4 {[%emt 0:06:30]} e5 {[%emt 0:01:31]} 20. Be3 {[%emt 0:01:20]} Rfd8 {[%emt 0:03:44]} 21. Rfd1 {[%emt 0:03:43]} f5 {[%emt 0:02:47]} 22. Bg5 {[%emt 0:05:41]} Bxg5 {[%emt 0:00:38]} 23. Nxg5 {[%emt 0:00:02]} Nc5 {[%emt 0:00:32]} 24. b4 {[%emt 0:10:11]} Nxa4 {[%emt 0:00:22]} 25. Ne6 {[%emt 0:00:17]} Re8 {[%emt 0:09:31]} 26. Nc7 {[%emt 0:01:50]} Nc3 {[%emt 0:00:37]} 27. Nxe8 {[%emt 0:04:18]} Rxe8 {[%emt 0:00:11]} 28. g3 {[%emt 0:03:28]} h6 {[%emt 0:17:28]} 29. Rbc1 {[%emt 0:01:34]} Nxd1 {[%emt 0:00:09]} 30. Rxd1 {[%emt 0:00:00]} Rc8 {[%emt 0:00:41]} 31. Rc1 {[%emt 0:00:51]} Kf7 {[%emt 0:00:53]} 32. Kf1 {[%emt 0:00:15]} Ke6 {[%emt 0:00:28]} 33. Ke2 {[%emt 0:00:17]} e4 {[%emt 0:03:45]} 34. Ke3 {[%emt 0:00:41]} Ke5 {[%emt 0:01:06]} 35. c5 {[%emt 0:01:21]} bxc5 {[%emt 0:01:06]} 36. bxc5 {[%emt 0:00:01]} Rc6 {[%emt 0:01:56]} 37. Ra1 {[%emt 0:00:49]} a6 {[%emt 0:01:00]} 38. h4 {[%emt 0:00:19]} g5 {[%emt 0:00:10]} 39. hxg5 {[%emt 0:00:35]} hxg5 {[%emt 0:00:04]} 40. Ra4 {[%emt 0:00:38]} f4+ {[%emt 0:00:19]} 41. Ke2 {[%emt 0:30:40]} fxg3 {[%emt 0:20:39]} 42. fxg3 {[%emt 0:00:00]} Kd5 {[%emt 0:01:04]} 43. Ke3 {[%emt 0:00:00]} Rf6 {[%emt 0:02:16]} 44. c6 {[%emt 0:00:00]} Rf3+ {[%emt 0:03:48]} 45. Kd2 {[%emt 0:00:00]} Kxc6 {[%emt 0:00:27]} 46. Rxa6+ {[%emt 0:00:00]} Kd7 {[%emt 0:01:17]} 47. Ra4 {[%emt 0:00:50]} e3+ {[%emt 0:00:06]} 48. Ke2 {[%emt 0:00:06]} Rxg3 {[%emt 0:00:17]} 49. Re4 {[%emt 0:00:29]} 1/2-1/2

[Event "XIV American Continental-ch 2019"]
[Site "Sao Paulo"]
[Date "2019.07.06"]
[Round "2.13"]
[White "Garcia Pantoja, Roberto"]
[Black "Albuquerque Junior, Wellington S."]
[Result "1-0"]
[ECO "C65"]
[WhiteElo "2529"]
[BlackElo "2204"]
[Annotator "RC"]
[PlyCount "69"]
[EventDate "2019.07.05"]
[EventType "swiss"]
[EventCountry "BRA"]
[SourceTitle "playchess.com"]
[Source "ChessBase"]
[SourceQuality "1"]
[TimeControl "40/5400+30:1800+30"]

1. e4 {[%emt 0:00:00]} e5 {[%emt 0:00:00]} 2. Nf3 {[%emt 0:00:00]} Nc6 {[%emt 0:00:00]} 3. Bb5 {[%emt 0:00:00]} Nf6 {[%emt 0:00:09]} 4. O-O {[%emt 0:02:24]} Bc5 {[%emt 0:00:57]} 5. c3 {[%emt 0:03:26]} O-O {[%emt 0:04:13]} 6. d4 {[%emt 0:00:05]} Be7 {[%emt 0:03:20]} 7. Nbd2 {[%emt 0:11:49]} exd4 {[%emt 0:05:20]} 8. e5 {[%emt 0:07:13]} Nd5 {[%emt 0:05:09]} 9. Ne4 {[%emt 0:04:55]} a6 {[%emt 0:03:57]} 10. Ba4 {[%emt 0:06:02]} Nb6 {[%emt 0:02:07]} 11. Bc2 {[%emt 0:00:22]} d5 {[%emt 0:06:08]} 12. exd6 {[%emt 0:06:11]} cxd6 {[%emt 0:01:58]} 13. Nxd4 {[%emt 0:02:29]} d5 {[%emt 0:05:10]} 14. Ng3 {[%emt 0:00:14]} g6 {[%emt 0:09:26]} 15. Bh6 {[%emt 0:04:34]} Re8 {[%emt 0:00:14]} 16. Re1 {[%emt 0:00:08]} Bf8 {[%emt 0:07:20]} 17. Bxf8 {[%emt 0:11:22]} Rxf8 {[%emt 0:01:31]} 18. Nxc6 {[%emt 0:07:38]} bxc6 {[%emt 0:00:10]} 19. Qd4 {[%emt 0:00:02]} Nd7 {[%emt 0:02:12]} 20. Ba4 {[%emt 0:04:26]} Bb7 {[%emt 0:01:38]} 21. Rad1 {[%emt 0:02:24]} Qb6 {[%emt 0:06:39]} 22. Qh4 {[%emt 0:11:12]} Qd8 {[%emt 0:04:06]} 23. Re7 {[%emt 0:01:39]} Re8 {[%emt 0:02:23]} 24. Rxe8+ {[%emt 0:00:58]} Qxe8 {[%emt 0:00:07]} 25. Qb4 {[%emt 0:00:19]} Rb8 {[%emt 0:02:42]} 26. Qd6 {[%emt 0:00:29]} Nf8 {[%emt 0:09:45]} 27. Rxd5 {[%emt 0:02:50]} Qe1+ {[%emt 0:02:17]} 28. Nf1 {[%emt 0:00:02]} cxd5 {[%emt 0:00:49]} 29. Qxb8 {[%emt 0:00:04]} Qe7 {[%emt 0:00:54]} 30. Ne3 {[%emt 0:00:15]} Kg7 {[%emt 0:02:18]} 31. h3 {[%emt 0:00:07]} Ne6 {[%emt 0:01:27]} 32. Nxd5 {[%emt 0:03:08]} Bxd5 {[%emt 0:02:13]} 33. Qe5+ {[%emt 0:00:03]} Qf6 {[%emt 0:00:21]} 34. Qxd5 {[%emt 0:00:17]} Qf4 35. Qd1 1-0

[Event "XIV American Continental-ch 2019"]
[Site "Sao Paulo"]
[Date "2019.07.06"]
[Round "2.14"]
[White "Gauche, Charles"]
[Black "Krysa, Leandro"]
[Result "0-1"]
[ECO "A45"]
[WhiteElo "2200"]
[BlackElo "2517"]
[Annotator "RC"]
[PlyCount "116"]
[EventDate "2019.07.05"]
[EventType "swiss"]
[EventCountry "BRA"]
[SourceTitle "playchess.com"]
[Source "ChessBase"]
[SourceQuality "1"]
[TimeControl "40/5400+30:1800+30"]

1. d4 {[%emt 0:00:00]} Nf6 {[%emt 0:00:00]} 2. Bg5 {[%emt 0:00:01]} e6 {[%emt 0:00:34]} 3. e3 {[%emt 0:01:04]} h6 {[%emt 0:02:47]} 4. Bh4 {[%emt 0:00:42]} Nc6 {[%emt 0:01:55]} 5. Nd2 {[%emt 0:01:05]} d6 {[%emt 0:00:30]} 6. c3 {[%emt 0:01:57]} Bd7 {[%emt 0:01:23]} 7. Bd3 {[%emt 0:03:31]} Qe7 {[%emt 0:02:14]} 8. e4 {[%emt 0:02:20]} e5 {[%emt 0:09:11]} 9. d5 {[%emt 0:01:26]} Nd8 {[%emt 0:07:14]} 10. f3 {[%emt 0:00:47]} g6 {[%emt 0:03:07]} 11. Ne2 {[%emt 0:01:37]} Bg7 {[%emt 0:03:19]} 12. O-O {[%emt 0:18:27]} O-O {[%emt 0:00:52]} 13. c4 {[%emt 0:02:01]} a5 {[%emt 0:00:41]} 14. b3 {[%emt 0:01:06]} c5 {[%emt 0:06:21]} 15. a3 {[%emt 0:01:39]} b6 {[%emt 0:02:23]} 16. b4 {[%emt 0:03:34]} cxb4 {[%emt 0:05:40]} 17. axb4 {[%emt 0:00:20]} Nb7 {[%emt 0:00:38]} 18. Rb1 {[%emt 0:02:49]} Rfb8 {[%emt 0:13:15]} 19. Bf2 {[%emt 0:06:00]} axb4 {[%emt 0:00:40]} 20. Rxb4 {[%emt 0:00:17]} Nc5 {[%emt 0:00:58]} 21. Qb1 {[%emt 0:01:04]} Qd8 {[%emt 0:02:19]} 22. Bc2 {[%emt 0:02:32]} h5 {[%emt 0:03:22]} 23. Be3 {[%emt 0:01:51]} Ra3 {[%emt 0:02:55]} 24. Bg5 {[%emt 0:00:07]} Qc7 {[%emt 0:02:05]} 25. Qb2 {[%emt 0:01:52]} Rba8 {[%emt 0:02:42]} 26. Nc3 {[%emt 0:01:48]} Kh7 {[%emt 0:07:36]} 27. Rb1 {[%emt 0:02:59]} R8a6 {[%emt 0:00:24]} 28. Rf1 {[%emt 0:12:36]} Ng8 {[%emt 0:01:29]} 29. Ndb1 {[%emt 0:04:20]} Ra1 {[%emt 0:03:34]} 30. Qc1 {[%emt 0:07:50]} Nd3 {[%emt 0:01:08]} 31. Bxd3 {[%emt 0:01:34]} Qc5+ {[%emt 0:00:03]} 32. Be3 {[%emt 0:08:06]} Qxb4 {[%emt 0:00:04]} 33. c5 {[%emt 0:00:27]} bxc5 {[%emt 0:05:07]} 34. Bxa6 {[%emt 0:00:23]} Rxa6 {[%emt 0:00:04]} 35. Qc2 {[%emt 0:00:26]} Bh6 {[%emt 0:01:07]} 36. Bf2 {[%emt 0:01:41]} Nf6 {[%emt 0:01:47]} 37. h3 {[%emt 0:00:19]} Ne8 {[%emt 0:01:32]} 38. g4 {[%emt 0:02:57]} Nc7 {[%emt 0:01:07]} 39. Kg2 {[%emt 0:00:49]} Ra8 {[%emt 0:02:47]} 40. Bh4 {[%emt 0:01:38]} Nb5 {[%emt 0:01:18]} 41. g5 {[%emt 0:31:01]} Bf8 {[%emt 0:09:39]} 42. Rf2 {[%emt 0:00:00]} Be7 {[%emt 0:08:08]} 43. Qc1 {[%emt 0:00:00]} Nxc3 {[%emt 0:09:11]} 44. Nxc3 {[%emt 0:00:00]} Ra3 {[%emt 0:01:02]} 45. Na2 {[%emt 0:00:00]} Qb3 {[%emt 0:01:17]} 46. Qd2 {[%emt 0:00:00]} Bd8 {[%emt 0:00:45]} 47. Nc1 {[%emt 0:00:00]} Qb1 {[%emt 0:01:01]} 48. Qb2 {[%emt 0:00:00]} Ra1 {[%emt 0:00:17]} 49. Qxb1 {[%emt 0:00:00]} Rxb1 {[%emt 0:00:03]} 50. Rc2 {[%emt 0:00:00]} Bb5 {[%emt 0:03:30]} 51. f4 {[%emt 0:00:00]} exf4 {[%emt 0:00:22]} 52. Kf3 {[%emt 0:00:00]} Ba5 {[%emt 0:00:45]} 53. Bf2 {[%emt 0:00:00]} Ba4 {[%emt 0:01:32]} 54. Ra2 {[%emt 0:00:00]} Bd1+ {[%emt 0:01:31]} 55. Kxf4 {[%emt 0:00:00]} Bc3 {[%emt 0:00:36]} 56. Ne2 {[%emt 0:00:00]} Be5+ {[%emt 0:00:24]} 57. Kf3 {[%emt 0:00:00]} c4 {[%emt 0:00:12]} 58. Bg3 {[%emt 0:00:12]} Bxe2+ {[%emt 0:00:15]} 0-1